[Event "4th CNE NED-ch Rapid"]
[Site "Amstelveen"]
[Date "2018.11.18"]
[Round "1"]
[White "Van Wely, Loek"]
[Black "Timman, Jan H"]
[Result "1/2-1/2"]
[ECO "C10"]
[WhiteElo "2622"]
[BlackElo "2541"]
[Annotator "RC"]
[PlyCount "20"]
[EventDate "2018.11.18"]
[EventType "tourn"]
[EventCountry "NED"]
[SourceTitle "playchess.com"]
[Source "ChessBase"]
[SourceQuality "1"]
[TimeControl "900+10"]

1. e4 {[%emt 0:00:00]} e6 {[%emt 0:00:00]} 2. d4 {[%emt 0:00:00]} d5 {[%emt 0:00:00]} 3. Nd2 {[%emt 0:00:00]} dxe4 {[%emt 0:00:00]} 4. Nxe4 {[%emt 0:00:00]} Nd7 {[%emt 0:00:00]} 5. Nf3 {[%emt 0:00:24]} Be7 {[%emt 0:00:00]} 6. Bd3 {[%emt 0:00:24]} Ngf6 {[%emt 0:00:00]} 7. Bf4 {[%emt 0:01:16]} Nxe4 {[%emt 0:00:34]} 8. Bxe4 {[%emt 0:00:02]} c5 {[%emt 0:00:00]} 9. Bg3 {[%emt 0:00:49]} O-O {[%emt 0:00:59]} 10. O-O {[%emt 0:00:04]} f5 {[%emt 0:00:16]} 1/2-1/2